[Event "*** Titled Tuesday Blitz"]
[Site "Chess.com"]
[Date "2020.11.03"]
[Round "2"]
[White "Brave_spirit12"]
[Black "German_Bazeev"]
[Result "1/2-1/2"]
[WhiteElo "2500"]
[BlackElo "2738"]
[TimeControl "180+1"]
[EndTime "10:20:18 PST"]
[Termination "Game drawn - insufficient material"]

1. e4 {[%clk 0:02:59.3]} 1... c6 {[%clk 0:03:00.2]} 2. d4 {[%clk 0:02:58.5]}
2... d5 {[%clk 0:03:00.7]} 3. Nc3 {[%clk 0:02:58.1]} 3... dxe4 {[%clk
0:03:00.8]} 4. Nxe4 {[%clk 0:02:59]} 4... Nf6 {[%clk 0:03:01.5]} 5. Nxf6+ {[%clk
0:02:57.3]} 5... exf6 {[%clk 0:03:02.4]} 6. Nf3 {[%clk 0:02:57.8]} 6... Bd6
{[%clk 0:03:03]} 7. Bd3 {[%clk 0:02:57.6]} 7... O-O {[%clk 0:03:02.5]} 8. O-O
{[%clk 0:02:58.1]} 8... Bg4 {[%clk 0:02:58.5]} 9. c3 {[%clk 0:02:57.4]} 9... Nd7
{[%clk 0:02:53.5]} 10. h3 {[%clk 0:02:57.5]} 10... Bh5 {[%clk 0:02:53]} 11. g4
{[%clk 0:02:52.5]} 11... Bg6 {[%clk 0:02:52.5]} 12. Kg2 {[%clk 0:02:52.7]} 12...
Re8 {[%clk 0:02:48.9]} 13. Be3 {[%clk 0:02:52.5]} 13... Nf8 {[%clk 0:02:37.6]}
14. Re1 {[%clk 0:02:47.3]} 14... Bc7 {[%clk 0:02:32.8]} 15. Qd2 {[%clk
0:02:42.1]} 15... Qd5 {[%clk 0:02:29.2]} 16. c4 {[%clk 0:02:36.6]} 16... Qd7
{[%clk 0:02:26.4]} 17. Re2 {[%clk 0:02:34.4]} 17... Ne6 {[%clk 0:02:24.6]} 18.
Rae1 {[%clk 0:02:32.7]} 18... Rad8 {[%clk 0:02:23.6]} 19. Bxg6 {[%clk
0:02:30.4]} 19... hxg6 {[%clk 0:02:22.9]} 20. Rd1 {[%clk 0:02:19]} 20... f5
{[%clk 0:02:20]} 21. d5 {[%clk 0:02:16.4]} 21... fxg4 {[%clk 0:02:16.5]} 22.
hxg4 {[%clk 0:02:01.8]} 22... Nc5 {[%clk 0:01:58.7]} 23. Kh3 {[%clk 0:01:06.6]}
23... Ne4 {[%clk 0:01:50.1]} 24. Qd3 {[%clk 0:00:58.1]} 24... f5 {[%clk
0:01:46.9]} 25. Kg2 {[%clk 0:00:45.4]} 25... f4 {[%clk 0:01:44.4]} 26. Bxa7
{[%clk 0:00:31.5]} 26... Qxg4+ {[%clk 0:01:42.8]} 27. Kf1 {[%clk 0:00:30.2]}
27... Qh3+ {[%clk 0:01:09.6]} 28. Kg1 {[%clk 0:00:29.8]} 28... Qf5 {[%clk
0:01:05.1]} 29. Rde1 {[%clk 0:00:26.3]} 29... cxd5 {[%clk 0:00:33.5]} 30. cxd5
{[%clk 0:00:24.2]} 30... Nf6 {[%clk 0:00:19.5]} 31. Rxe8+ {[%clk 0:00:22.5]}
31... Rxe8 {[%clk 0:00:19.4]} 32. Rxe8+ {[%clk 0:00:22.4]} 32... Nxe8 {[%clk
0:00:20.3]} 33. Qxf5 {[%clk 0:00:22.8]} 33... gxf5 {[%clk 0:00:21.2]} 34. Bc5
{[%clk 0:00:22.1]} 34... Kf7 {[%clk 0:00:15.8]} 35. Nd4 {[%clk 0:00:22]} 35...
g6 {[%clk 0:00:15.2]} 36. Ne6 {[%clk 0:00:21.3]} 36... Be5 {[%clk 0:00:15.3]}
37. b4 {[%clk 0:00:19.9]} 37... b5 {[%clk 0:00:14.8]} 38. Nd8+ {[%clk
0:00:18.2]} 38... Kf6 {[%clk 0:00:09.4]} 39. Nc6 {[%clk 0:00:18.3]} 39... Bd6
{[%clk 0:00:08.9]} 40. Bd4+ {[%clk 0:00:17.8]} 40... Kf7 {[%clk 0:00:08.8]} 41.
a3 {[%clk 0:00:17.9]} 41... Nc7 {[%clk 0:00:09]} 42. Na7 {[%clk 0:00:15.9]}
42... g5 {[%clk 0:00:08.5]} 43. Bb6 {[%clk 0:00:15.7]} 43... Nxd5 {[%clk
0:00:06.4]} 44. Bd4 {[%clk 0:00:11.2]} 44... Nc7 {[%clk 0:00:05.6]} 45. Bb6
{[%clk 0:00:11.5]} 45... Nd5 {[%clk 0:00:05.3]} 46. Bd4 {[%clk 0:00:07.8]} 46...
Nc7 {[%clk 0:00:05.5]} 47. Bb6 {[%clk 0:00:06.4]} 47... g4 {[%clk 0:00:06.1]}
48. Bxc7 {[%clk 0:00:06.5]} 48... Bxc7 {[%clk 0:00:07]} 49. Nxb5 {[%clk
0:00:07.2]} 49... Be5 {[%clk 0:00:07.9]} 50. a4 {[%clk 0:00:07.3]} 50... Ke6
{[%clk 0:00:07.6]} 51. a5 {[%clk 0:00:07.8]} 51... Kd5 {[%clk 0:00:08.1]} 52. a6
{[%clk 0:00:07.7]} 52... Kc6 {[%clk 0:00:08.7]} 53. a7 {[%clk 0:00:07.1]} 53...
Kb7 {[%clk 0:00:08.9]} 54. Kg2 {[%clk 0:00:07.5]} 54... f3+ {[%clk 0:00:08.6]}
55. Kf1 {[%clk 0:00:07.4]} 55... f4 {[%clk 0:00:08.8]} 56. Na3 {[%clk
0:00:07.6]} 56... g3 {[%clk 0:00:07.7]} 57. Nc4 {[%clk 0:00:07.1]} 57... Bd4
{[%clk 0:00:07.8]} 58. Nd2 {[%clk 0:00:05.7]} 58... Bxf2 {[%clk 0:00:06.1]} 59.
Nxf3 {[%clk 0:00:05.7]} 59... Bxa7 {[%clk 0:00:06.7]} 60. Kg2 {[%clk 0:00:06.2]}
60... Be3 {[%clk 0:00:06.3]} 61. Nh4 {[%clk 0:00:06.4]} 61... Kc6 {[%clk
0:00:06.2]} 62. Nf5 {[%clk 0:00:06.8]} 62... Bc1 {[%clk 0:00:05.5]} 63. Nxg3
{[%clk 0:00:06.7]} 63... fxg3 {[%clk 0:00:04]} 64. Kxg3 {[%clk 0:00:07.6]} 64...
Kb5 {[%clk 0:00:04.9]} 65. Kf3 {[%clk 0:00:08.5]} 65... Kxb4 {[%clk 0:00:05.8]}
1/2-1/2

[Event "*** Titled Tuesday Blitz"]
[Site "Chess.com"]
[Date "2020.11.03"]
[Round "2"]
[White "Smile2005"]
[Black "BegmuratovKh2010"]
[Result "0-1"]
[WhiteElo "2274"]
[BlackElo "2459"]
[TimeControl "180+1"]
[EndTime "10:20:21 PST"]
[Termination "BegmuratovKh2010 won on time"]

1. Nf3 {[%clk 0:03:00.2]} 1... Nf6 {[%clk 0:02:59.1]} 2. g3 {[%clk 0:03:01.1]}
2... g6 {[%clk 0:02:59]} 3. Bg2 {[%clk 0:03:02]} 3... Bg7 {[%clk 0:02:59.8]} 4.
O-O {[%clk 0:03:02]} 4... O-O {[%clk 0:03:00.7]} 5. d3 {[%clk 0:03:01.9]} 5...
d6 {[%clk 0:03:00.5]} 6. e4 {[%clk 0:03:01.9]} 6... e5 {[%clk 0:02:59.7]} 7. Nc3
{[%clk 0:03:01.9]} 7... Nc6 {[%clk 0:02:57.5]} 8. d4 {[%clk 0:03:01.8]} 8... Bg4
{[%clk 0:02:48.3]} 9. h3 {[%clk 0:03:01.5]} 9... Bxf3 {[%clk 0:02:47.4]} 10.
Bxf3 {[%clk 0:02:58.6]} 10... Nxd4 {[%clk 0:02:45.7]} 11. Bg2 {[%clk 0:02:58.9]}
11... c5 {[%clk 0:02:40.7]} 12. Nd5 {[%clk 0:02:55.4]} 12... Nxd5 {[%clk
0:02:36.9]} 13. exd5 {[%clk 0:02:56.3]} 13... Nf5 {[%clk 0:02:37.8]} 14. c3
{[%clk 0:02:56.3]} 14... Ne7 {[%clk 0:02:36.9]} 15. Qb3 {[%clk 0:02:55.4]} 15...
Qd7 {[%clk 0:02:34.5]} 16. Bg5 {[%clk 0:02:55.5]} 16... f6 {[%clk 0:02:32.8]}
17. Be3 {[%clk 0:02:55.1]} 17... f5 {[%clk 0:02:32.2]} 18. Bg5 {[%clk
0:02:55.2]} 18... Bf6 {[%clk 0:02:31.5]} 19. Bh6 {[%clk 0:02:55.3]} 19... Rf7
{[%clk 0:02:31]} 20. f4 {[%clk 0:02:54.6]} 20... e4 {[%clk 0:02:29.9]} 21. h4
{[%clk 0:02:51.5]} 21... Rc8 {[%clk 0:02:19]} 22. c4 {[%clk 0:02:50.7]} 22...
Kh8 {[%clk 0:02:14.3]} 23. Kh2 {[%clk 0:02:50.2]} 23... Bd4 {[%clk 0:02:12]} 24.
Bg5 {[%clk 0:02:49.4]} 24... Ng8 {[%clk 0:02:11.1]} 25. h5 {[%clk 0:02:48]}
25... Bf6 {[%clk 0:02:02]} 26. hxg6 {[%clk 0:02:45.8]} 26... hxg6 {[%clk
0:02:00.7]} 27. Bxf6+ {[%clk 0:02:45.2]} 27... Nxf6 {[%clk 0:01:59.9]} 28. Rh1
{[%clk 0:02:45.6]} 28... Rh7+ {[%clk 0:01:55.7]} 29. Kg1 {[%clk 0:02:45.7]}
29... Kg7 {[%clk 0:01:47]} 30. Qc3 {[%clk 0:02:42.2]} 30... Rxh1+ {[%clk
0:01:45.7]} 31. Kxh1 {[%clk 0:02:41.2]} 31... Rh8+ {[%clk 0:01:46.6]} 32. Kg1
{[%clk 0:02:41.2]} 32... Kf7 {[%clk 0:01:43.5]} 33. b3 {[%clk 0:02:26.2]} 33...
Rh7 {[%clk 0:01:39.8]} 34. Kf2 {[%clk 0:02:25.7]} 34... Ng4+ {[%clk 0:01:38.5]}
35. Kg1 {[%clk 0:02:25.8]} 35... Qd8 {[%clk 0:01:35.1]} 36. b4 {[%clk
0:02:21.9]} 36... Qb6 {[%clk 0:01:26.3]} 37. b5 {[%clk 0:02:21]} 37... Qd8
{[%clk 0:01:24.9]} 38. a4 {[%clk 0:02:21.1]} 38... Rh5 {[%clk 0:01:20.5]} 39.
Re1 {[%clk 0:02:18.4]} 39... Qg8 {[%clk 0:01:17.4]} 40. Qa5 {[%clk 0:02:09.5]}
40... Qc8 {[%clk 0:00:56.7]} 41. Qxa7 {[%clk 0:02:07.7]} 41... Kf6 {[%clk
0:00:51.8]} 42. Qb6 {[%clk 0:02:06.3]} 42... Qd7 {[%clk 0:00:42]} 43. a5 {[%clk
0:02:05.8]} 43... g5 {[%clk 0:00:38.6]} 44. fxg5+ {[%clk 0:02:03.8]} 44... Kxg5
{[%clk 0:00:39.5]} 45. a6 {[%clk 0:02:00]} 45... Qh7 {[%clk 0:00:38.2]} 46. Qd8+
{[%clk 0:01:16.5]} 46... Kg6 {[%clk 0:00:36.6]} 47. Qxd6+ {[%clk 0:01:15.4]}
47... Kg5 {[%clk 0:00:36.6]} 48. Qf4+ {[%clk 0:00:28.5]} 48... Kf6 {[%clk
0:00:28.9]} 49. axb7 {[%clk 0:00:25.6]} 49... Qxb7 {[%clk 0:00:10.7]} 50. Rxe4
{[%clk 0:00:14]} 50... Kg7 {[%clk 0:00:09.4]} 51. Re6 {[%clk 0:00:09.7]} 51...
Qa7 {[%clk 0:00:08.9]} 52. Qc1 {[%clk 0:00:04.3]} 52... Qa2 {[%clk 0:00:06.8]}
53. Qc3+ {[%clk 0:00:04]} 53... Kf7 {[%clk 0:00:05.8]} 54. Qf3 {[%clk
0:00:01.5]} 54... Qf2+ {[%clk 0:00:05.6]} 0-1

[Event "*** Titled Tuesday Blitz"]
[Site "Chess.com"]
[Date "2020.11.03"]
[Round "2"]
[White "monalize"]
[Black "infinitegiantkiller"]
[Result "0-1"]
[WhiteElo "2267"]
[BlackElo "2455"]
[TimeControl "180+1"]
[EndTime "10:20:21 PST"]
[Termination "infinitegiantkiller won on time"]

1. e4 {[%clk 0:02:56.5]} 1... e6 {[%clk 0:03:00.9]} 2. d4 {[%clk 0:02:55.3]}
2... d5 {[%clk 0:03:01.8]} 3. exd5 {[%clk 0:02:52.7]} 3... exd5 {[%clk
0:03:02.7]} 4. Bd3 {[%clk 0:02:51.4]} 4... Nf6 {[%clk 0:03:03.6]} 5. Qf3 {[%clk
0:02:47.1]} 5... Be7 {[%clk 0:03:01.8]} 6. Ne2 {[%clk 0:02:45]} 6... O-O {[%clk
0:03:01.9]} 7. h3 {[%clk 0:02:44.3]} 7... c5 {[%clk 0:03:00]} 8. c3 {[%clk
0:02:38.7]} 8... Nc6 {[%clk 0:02:59.8]} 9. O-O {[%clk 0:02:37.7]} 9... cxd4
{[%clk 0:02:57.2]} 10. Nxd4 {[%clk 0:02:36.5]} 10... Nxd4 {[%clk 0:02:56.7]} 11.
cxd4 {[%clk 0:02:36.5]} 11... Qb6 {[%clk 0:02:57]} 12. Rd1 {[%clk 0:02:21]}
12... Be6 {[%clk 0:02:47.8]} 13. Nc3 {[%clk 0:02:17.5]} 13... Rac8 {[%clk
0:02:47.1]} 14. Rb1 {[%clk 0:02:08.4]} 14... g6 {[%clk 0:02:32.8]} 15. Bh6
{[%clk 0:02:01.6]} 15... Rfe8 {[%clk 0:02:29]} 16. Bg5 {[%clk 0:02:00.7]} 16...
Ne4 {[%clk 0:02:12.2]} 17. Bxe7 {[%clk 0:01:47.9]} 17... Rxe7 {[%clk 0:02:07.7]}
18. Bxe4 {[%clk 0:01:47]} 18... dxe4 {[%clk 0:02:06.9]} 19. Qxe4 {[%clk
0:01:46.8]} 19... Rd7 {[%clk 0:02:03.3]} 20. d5 {[%clk 0:01:45.7]} 20... Bf5
{[%clk 0:02:03.5]} 21. Qa4 {[%clk 0:01:42.4]} 21... Rcd8 {[%clk 0:01:56]} 22.
Rbc1 {[%clk 0:01:37.9]} 22... Qxb2 {[%clk 0:01:55.7]} 23. g4 {[%clk 0:01:36.2]}
23... Bd3 {[%clk 0:01:16.2]} 24. Qd4 {[%clk 0:01:28.6]} 24... Ba6 {[%clk
0:01:07]} 25. Rb1 {[%clk 0:01:22.6]} 25... Qa3 {[%clk 0:01:01.8]} 26. Ne4 {[%clk
0:01:21.4]} 26... Rd6 {[%clk 0:00:53.4]} 27. Nxd6 {[%clk 0:01:20]} 27... Qxd6
{[%clk 0:00:52.5]} 28. Rb3 {[%clk 0:01:17.7]} 28... b6 {[%clk 0:00:52.1]} 29.
Qe4 {[%clk 0:01:08.3]} 29... Bb7 {[%clk 0:00:49.8]} 30. Rbd3 {[%clk 0:01:07]}
30... Rd7 {[%clk 0:00:43.8]} 31. R3d2 {[%clk 0:01:05.3]} 31... Re7 {[%clk
0:00:43.8]} 32. Qf3 {[%clk 0:01:02.6]} 32... Qe5 {[%clk 0:00:39.5]} 33. Rd3
{[%clk 0:00:59.5]} 33... Qd6 {[%clk 0:00:36.4]} 34. a3 {[%clk 0:00:54.7]} 34...
a5 {[%clk 0:00:33.7]} 35. Qg3 {[%clk 0:00:51.1]} 35... Qc5 {[%clk 0:00:29.6]}
36. d6 {[%clk 0:00:39.6]} 36... Rd7 {[%clk 0:00:26.4]} 37. Qe3 {[%clk
0:00:37.3]} 37... Qc6 {[%clk 0:00:26.2]} 38. f3 {[%clk 0:00:37.5]} 38... b5
{[%clk 0:00:24]} 39. Kf2 {[%clk 0:00:34.4]} 39... b4 {[%clk 0:00:23.6]} 40. axb4
{[%clk 0:00:33.4]} 40... axb4 {[%clk 0:00:24.5]} 41. R1d2 {[%clk 0:00:32.9]}
41... Kg7 {[%clk 0:00:19.6]} 42. Qd4+ {[%clk 0:00:31.2]} 42... f6 {[%clk
0:00:18.9]} 43. Qxb4 {[%clk 0:00:30.3]} 43... Ba6 {[%clk 0:00:17.7]} 44. Rd4
{[%clk 0:00:28.6]} 44... Rb7 {[%clk 0:00:17.9]} 45. Qa3 {[%clk 0:00:27.2]} 45...
Rd7 {[%clk 0:00:17]} 46. Qe3 {[%clk 0:00:25.5]} 46... Bb7 {[%clk 0:00:17.3]} 47.
Rd5 {[%clk 0:00:23.6]} 47... Qc4 {[%clk 0:00:16.5]} 48. R5d4 {[%clk 0:00:23.1]}
48... Qc6 {[%clk 0:00:16.3]} 49. R4d3 {[%clk 0:00:22.4]} 49... Qc1 {[%clk
0:00:15.5]} 50. Qe7+ {[%clk 0:00:20.4]} 50... Rxe7 {[%clk 0:00:15.5]} 51. dxe7
{[%clk 0:00:20.2]} 51... Bc6 {[%clk 0:00:16]} 52. Rd6 {[%clk 0:00:18.1]} 52...
Qc5+ {[%clk 0:00:15.9]} 53. Kg2 {[%clk 0:00:13.5]} 53... Kf7 {[%clk 0:00:15.1]}
54. Rd8 {[%clk 0:00:09.8]} 54... Qxe7 {[%clk 0:00:14]} 55. R8d3 {[%clk
0:00:08.7]} 55... Qc5 {[%clk 0:00:12.5]} 56. Re2 {[%clk 0:00:07.3]} 56... Kg7
{[%clk 0:00:12.2]} 57. Rdd2 {[%clk 0:00:06.8]} 57... Qc3 {[%clk 0:00:11.1]} 58.
Rf2 {[%clk 0:00:06.7]} 58... Qe3 {[%clk 0:00:10.7]} 59. Rc2 {[%clk 0:00:05.9]}
59... Bd5 {[%clk 0:00:10.3]} 60. Rb2 {[%clk 0:00:05.3]} 60... Qe5 {[%clk
0:00:09.5]} 61. Rbd2 {[%clk 0:00:04.3]} 61... Kh6 {[%clk 0:00:09.6]} 62. Rde2
{[%clk 0:00:04]} 62... Qf4 {[%clk 0:00:09.1]} 63. Rc2 {[%clk 0:00:02.9]} 63...
Be6 {[%clk 0:00:08.6]} 64. Rcd2 {[%clk 0:00:02.4]} 64... f5 {[%clk 0:00:08.6]}
65. Rd3 {[%clk 0:00:01.3]} 65... fxg4 {[%clk 0:00:08.6]} 66. hxg4 {[%clk
0:00:01.5]} 66... Kg5 {[%clk 0:00:08]} 0-1

[Event "*** Titled Tuesday Blitz"]
[Site "Chess.com"]
[Date "2020.11.03"]
[Round "2"]
[White "JoachimMouhamad"]
[Black "AndrewMcStone"]
[Result "1/2-1/2"]
[WhiteElo "2387"]
[BlackElo "2143"]
[TimeControl "180+1"]
[EndTime "10:20:23 PST"]
[Termination "Game drawn by repetition"]

1. e4 {[%clk 0:03:00.9]} 1... Nc6 {[%clk 0:02:58.2]} 2. Nf3 {[%clk 0:03:00.1]}
2... d6 {[%clk 0:02:57.5]} 3. d4 {[%clk 0:02:59.1]} 3... Nf6 {[%clk 0:02:58]} 4.
Nc3 {[%clk 0:02:58.7]} 4... g6 {[%clk 0:02:58]} 5. Be2 {[%clk 0:02:55.7]} 5...
Bg7 {[%clk 0:02:58.3]} 6. d5 {[%clk 0:02:51.3]} 6... Nb8 {[%clk 0:02:56.2]} 7.
O-O {[%clk 0:02:49.6]} 7... O-O {[%clk 0:02:56.7]} 8. Bf4 {[%clk 0:02:33.5]}
8... e5 {[%clk 0:02:56]} 9. dxe6 {[%clk 0:02:33.1]} 9... Bxe6 {[%clk 0:02:56.2]}
10. Nd4 {[%clk 0:02:32.1]} 10... Bd7 {[%clk 0:02:47.9]} 11. Re1 {[%clk
0:02:24.4]} 11... Re8 {[%clk 0:02:47.8]} 12. Bc4 {[%clk 0:02:17.6]} 12... Nc6
{[%clk 0:02:42.2]} 13. Nxc6 {[%clk 0:02:14.1]} 13... Bxc6 {[%clk 0:02:37.1]} 14.
e5 {[%clk 0:02:10.8]} 14... dxe5 {[%clk 0:02:31.5]} 15. Rxe5 {[%clk 0:02:04.6]}
15... Nh5 {[%clk 0:01:47.9]} 16. Rxe8+ {[%clk 0:01:59.9]} 16... Qxe8 {[%clk
0:01:47.1]} 17. Bxc7 {[%clk 0:01:50.9]} 17... Rc8 {[%clk 0:01:40.3]} 18. Bg3
{[%clk 0:01:46.1]} 18... Bxg2 {[%clk 0:01:29.7]} 19. Bxf7+ {[%clk 0:01:40.6]}
19... Qxf7 {[%clk 0:01:29.7]} 20. Kxg2 {[%clk 0:01:39.6]} 20... Bxc3 {[%clk
0:01:16]} 21. bxc3 {[%clk 0:01:39.9]} 21... Nxg3 {[%clk 0:01:09.7]} 22. hxg3
{[%clk 0:01:37.3]} 22... Rxc3 {[%clk 0:01:03.6]} 23. Qd8+ {[%clk 0:01:34.2]}
23... Kg7 {[%clk 0:01:03.9]} 24. Qd4+ {[%clk 0:01:29.1]} 24... Qf6 {[%clk
0:01:04.1]} 25. Qe4 {[%clk 0:01:17.8]} 25... Qc6 {[%clk 0:01:00.9]} 26. Qxc6
{[%clk 0:01:13.8]} 26... Rxc6 {[%clk 0:01:01.8]} 27. Rc1 {[%clk 0:00:49]} 27...
Rc3 {[%clk 0:01:01.3]} 28. Kf1 {[%clk 0:00:41.7]} 28... b5 {[%clk 0:00:59.6]}
29. Rd1 {[%clk 0:00:37.9]} 29... a5 {[%clk 0:00:42.5]} 30. Rd5 {[%clk 0:00:36]}
30... Rxc2 {[%clk 0:00:40.3]} 31. Rxb5 {[%clk 0:00:36.1]} 31... Rxa2 {[%clk
0:00:40.9]} 32. Rb7+ {[%clk 0:00:36]} 32... Kh6 {[%clk 0:00:39.9]} 33. Ra7
{[%clk 0:00:36]} 33... a4 {[%clk 0:00:39.9]} 34. Kg2 {[%clk 0:00:36.1]} 34... a3
{[%clk 0:00:38.5]} 35. Kg1 {[%clk 0:00:33.8]} 35... Ra1+ {[%clk 0:00:38.2]} 36.
Kg2 {[%clk 0:00:34.1]} 36... a2 {[%clk 0:00:38.7]} 37. Ra5 {[%clk 0:00:31.3]}
37... Kg7 {[%clk 0:00:32.1]} 38. Kh2 {[%clk 0:00:29.3]} 38... Kf6 {[%clk
0:00:31.7]} 39. Kg2 {[%clk 0:00:29.9]} 39... h5 {[%clk 0:00:30.4]} 40. Kh2
{[%clk 0:00:29.8]} 40... g5 {[%clk 0:00:27.6]} 41. Kg2 {[%clk 0:00:30.2]} 41...
h4 {[%clk 0:00:21.1]} 42. gxh4 {[%clk 0:00:29.1]} 42... gxh4 {[%clk 0:00:20.1]}
43. Kh2 {[%clk 0:00:29.5]} 43... h3 {[%clk 0:00:18.6]} 44. Ra8 {[%clk
0:00:27.1]} 44... Kf5 {[%clk 0:00:17.7]} 45. Ra4 {[%clk 0:00:25.1]} 45... Ke5
{[%clk 0:00:17.2]} 46. Ra8 {[%clk 0:00:24.8]} 46... Kd4 {[%clk 0:00:17.3]} 47.
Ra3 {[%clk 0:00:23.2]} 47... Ke4 {[%clk 0:00:15.8]} 48. Ra8 {[%clk 0:00:15.7]}
48... Kf3 {[%clk 0:00:15.4]} 49. Ra3+ {[%clk 0:00:06.7]} 49... Kxf2 {[%clk
0:00:14.3]} 50. Ra8 {[%clk 0:00:07.3]} 50... Ke2 {[%clk 0:00:13.6]} 51. Ra7
{[%clk 0:00:07.3]} 51... Kd2 {[%clk 0:00:13.8]} 52. Rd7+ {[%clk 0:00:05.3]}
52... Kc3 {[%clk 0:00:13.8]} 53. Rc7+ {[%clk 0:00:05.9]} 53... Kb4 {[%clk
0:00:13.7]} 54. Rb7+ {[%clk 0:00:06.5]} 54... Ka5 {[%clk 0:00:13.3]} 55. Ra7+
{[%clk 0:00:06.8]} 55... Kb6 {[%clk 0:00:13.5]} 56. Ra3 {[%clk 0:00:07.1]} 56...
Kb5 {[%clk 0:00:11.9]} 57. Ra8 {[%clk 0:00:07.2]} 57... Kb4 {[%clk 0:00:10.6]}
58. Rb8+ {[%clk 0:00:07.6]} 58... Kc3 {[%clk 0:00:10.7]} 59. Rc8+ {[%clk
0:00:08.1]} 59... Kd3 {[%clk 0:00:10.4]} 60. Rd8+ {[%clk 0:00:08.6]} 60... Kc4
{[%clk 0:00:10.9]} 61. Rc8+ {[%clk 0:00:08.9]} 61... Kb5 {[%clk 0:00:11.4]} 62.
Rb8+ {[%clk 0:00:08.8]} 62... Ka6 {[%clk 0:00:11.4]} 63. Ra8+ {[%clk 0:00:09.2]}
63... Kb7 {[%clk 0:00:11.6]} 64. Ra3 {[%clk 0:00:10.1]} 64... Kb8 {[%clk
0:00:10.7]} 65. Ra4 {[%clk 0:00:10.3]} 65... Kb7 {[%clk 0:00:10.9]} 66. Ra3
{[%clk 0:00:10.8]} 66... Kb6 {[%clk 0:00:10.6]} 67. Ra4 {[%clk 0:00:11.1]} 67...
Kb5 {[%clk 0:00:10.3]} 68. Ra8 {[%clk 0:00:11.5]} 68... Kb4 {[%clk 0:00:09.7]}
69. Rb8+ {[%clk 0:00:11.7]} 69... Kc5 {[%clk 0:00:09.7]} 70. Rc8+ {[%clk
0:00:12.1]} 70... Kb6 {[%clk 0:00:09.6]} 71. Ra8 {[%clk 0:00:12.1]} 71... Kb7
{[%clk 0:00:09.3]} 72. Ra3 {[%clk 0:00:12]} 1/2-1/2

[Event "*** Titled Tuesday Blitz"]
[Site "Chess.com"]
[Date "2020.11.03"]
[Round "2"]
[White "korbul"]
[Black "Supernotar"]
[Result "0-1"]
[WhiteElo "2549"]
[BlackElo "2848"]
[TimeControl "180+1"]
[EndTime "10:20:24 PST"]
[Termination "Supernotar won by checkmate"]

1. e4 {[%clk 0:03:00.9]} 1... c6 {[%clk 0:03:00.3]} 2. d4 {[%clk 0:03:00.3]}
2... d5 {[%clk 0:03:01.2]} 3. e5 {[%clk 0:03:00.7]} 3... Bf5 {[%clk 0:03:01]} 4.
Nf3 {[%clk 0:03:00.9]} 4... e6 {[%clk 0:03:01.4]} 5. Be2 {[%clk 0:03:01.2]} 5...
Nd7 {[%clk 0:03:01.5]} 6. O-O {[%clk 0:03:00.3]} 6... h6 {[%clk 0:03:01.9]} 7.
Nbd2 {[%clk 0:02:59.4]} 7... Ne7 {[%clk 0:03:02]} 8. a4 {[%clk 0:02:56.9]} 8...
Bg6 {[%clk 0:03:02]} 9. a5 {[%clk 0:02:55.3]} 9... Nf5 {[%clk 0:03:02.2]} 10.
Nb3 {[%clk 0:02:55.2]} 10... Be7 {[%clk 0:03:01.8]} 11. c4 {[%clk 0:02:54.6]}
11... dxc4 {[%clk 0:02:57.1]} 12. Bxc4 {[%clk 0:02:54]} 12... O-O {[%clk
0:02:57.4]} 13. Qe2 {[%clk 0:02:41.7]} 13... Qc7 {[%clk 0:02:54]} 14. Be3 {[%clk
0:02:35.1]} 14... Rfd8 {[%clk 0:02:50.4]} 15. g4 {[%clk 0:02:31]} 15... Nxe3
{[%clk 0:02:50]} 16. fxe3 {[%clk 0:02:30.2]} 16... c5 {[%clk 0:02:45.9]} 17.
Rac1 {[%clk 0:02:22]} 17... Rac8 {[%clk 0:02:45.6]} 18. h4 {[%clk 0:02:09.2]}
18... Qb8 {[%clk 0:02:43.6]} 19. h5 {[%clk 0:02:09]} 19... Bh7 {[%clk
0:02:42.5]} 20. Qf2 {[%clk 0:02:09.2]} 20... b5 {[%clk 0:02:33.6]} 21. Be2
{[%clk 0:01:52.3]} 21... Rf8 {[%clk 0:02:23.4]} 22. Qg3 {[%clk 0:01:34.2]} 22...
a6 {[%clk 0:02:17]} 23. Kh2 {[%clk 0:01:30.4]} 23... cxd4 {[%clk 0:02:15.2]} 24.
exd4 {[%clk 0:01:26.3]} 24... Rxc1 {[%clk 0:02:14.9]} 25. Nxc1 {[%clk
0:01:25.1]} 25... Qc7 {[%clk 0:02:09.6]} 26. g5 {[%clk 0:01:17.9]} 26... hxg5
{[%clk 0:02:07.4]} 27. Nxg5 {[%clk 0:01:17.7]} 27... Bf5 {[%clk 0:02:00.1]} 28.
Nd3 {[%clk 0:01:00.2]} 28... Qxa5 {[%clk 0:01:54.7]} 29. Nf4 {[%clk 0:00:47.8]}
29... Qd2 {[%clk 0:01:46.8]} 30. Nf3 {[%clk 0:00:46.3]} 30... Qe3 {[%clk
0:01:37.9]} 31. Rg1 {[%clk 0:00:42.2]} 31... g6 {[%clk 0:01:27.4]} 32. hxg6
{[%clk 0:00:38.3]} 32... fxg6 {[%clk 0:01:21.4]} 33. Nxg6 {[%clk 0:00:35]} 33...
Kf7 {[%clk 0:01:14.9]} 34. Nxf8 {[%clk 0:00:30]} 34... Nxf8 {[%clk 0:01:06.5]}
35. Rg2 {[%clk 0:00:25.4]} 35... Qh6+ {[%clk 0:01:02.9]} 36. Kg1 {[%clk
0:00:23]} 36... Qe3+ {[%clk 0:01:03.2]} 37. Qf2 {[%clk 0:00:22.9]} 37... Qf4
{[%clk 0:00:59.1]} 38. d5 {[%clk 0:00:17.7]} 38... exd5 {[%clk 0:00:53.1]} 39.
Nd4 {[%clk 0:00:17.1]} 39... Qxf2+ {[%clk 0:00:35.8]} 40. Rxf2 {[%clk 0:00:18]}
40... Bc5 {[%clk 0:00:34.7]} 41. Rxf5+ {[%clk 0:00:17.1]} 41... Ke7 {[%clk
0:00:32.3]} 42. Rh5 {[%clk 0:00:13.2]} 42... Bxd4+ {[%clk 0:00:30.8]} 43. Kg2
{[%clk 0:00:14.1]} 43... Bxb2 {[%clk 0:00:29.2]} 44. Bg4 {[%clk 0:00:14]} 44...
a5 {[%clk 0:00:24.6]} 45. Kf3 {[%clk 0:00:13.9]} 45... a4 {[%clk 0:00:24.4]} 46.
Rh6 {[%clk 0:00:10.5]} 46... Bxe5 {[%clk 0:00:20.1]} 47. Ra6 {[%clk 0:00:10.8]}
47... Bd6 {[%clk 0:00:18.2]} 48. Bf5 {[%clk 0:00:10.4]} 48... Ne6 {[%clk
0:00:14.4]} 49. Bxe6 {[%clk 0:00:09.9]} 49... Kxe6 {[%clk 0:00:14.6]} 50. Ke3
{[%clk 0:00:10.8]} 50... a3 {[%clk 0:00:13.5]} 51. Kd3 {[%clk 0:00:10.7]} 51...
Ke5 {[%clk 0:00:13]} 52. Ra5 {[%clk 0:00:10.4]} 52... b4 {[%clk 0:00:12.3]} 53.
Ra8 {[%clk 0:00:10.6]} 53... b3 {[%clk 0:00:10.5]} 54. Re8+ {[%clk 0:00:10.7]}
54... Kf6 {[%clk 0:00:10.1]} 55. Ra8 {[%clk 0:00:09.2]} 55... a2 {[%clk
0:00:07.4]} 56. Ra6 {[%clk 0:00:09.3]} 56... Ke7 {[%clk 0:00:06.9]} 57. Kd4
{[%clk 0:00:08.5]} 57... b2 {[%clk 0:00:05.2]} 58. Rxa2 {[%clk 0:00:08.6]} 58...
b1=Q {[%clk 0:00:05.3]} 59. Re2+ {[%clk 0:00:09.5]} 59... Kd7 {[%clk 0:00:05]}
60. Kxd5 {[%clk 0:00:10.4]} 60... Qd1+ {[%clk 0:00:04.6]} 61. Kc4 {[%clk
0:00:09.9]} 61... Qxe2+ {[%clk 0:00:04.6]} 62. Kc3 {[%clk 0:00:10.8]} 62... Qe4
{[%clk 0:00:04.5]} 63. Kb2 {[%clk 0:00:11.7]} 63... Bb8 {[%clk 0:00:04.7]} 64.
Kb3 {[%clk 0:00:12.6]} 64... Qd4 {[%clk 0:00:04.7]} 65. Ka2 {[%clk 0:00:12.2]}
65... Qb6 {[%clk 0:00:04.6]} 66. Ka3 {[%clk 0:00:11.4]} 66... Kc6 {[%clk
0:00:04.9]} 67. Ka4 {[%clk 0:00:12.3]} 67... Qb2 {[%clk 0:00:04.3]} 68. Ka5
{[%clk 0:00:12.3]} 68... Qb5# {[%clk 0:00:04.4]} 0-1